bitfinex/quotes_BTCUSD_20250709
["timestamp","ask_amount","ask_price","bid_price","bid_amount"]
[1752083696166,0.54425501,109250.0,109240.0,0.32747653]
[1752083696371,0.54425501,109250.0,109240.0,0.14439373]
[1752083696571,0.54425501,109250.0,109240.0,0.33663091]
[1752083697737,0.54425501,109250.0,109240.0,0.33763091]
[1752083698379,0.54425501,109250.0,109240.0,0.33047684]
[1752083699630,0.54425501,109250.0,109240.0,0.13823958]
[1752083700140,0.19221959,109250.0,109240.0,0.13823958]
[1752083700901,0.33201959,109250.0,109240.0,0.13823958]
[1752083701348,0.33201959,109250.0,109240.0,0.32132269]
[1752083701570,0.33201959,109250.0,109240.0,0.13823958]
[1752083701768,0.33201959,109250.0,109240.0,0.32132269]
[1752083702248,0.33201959,109250.0,109240.0,0.13823958]
[1752083702604,0.33201959,109250.0,109240.0,0.33047684]
[1752083702810,0.33201959,109250.0,109240.0,0.14739373]
[1752083703440,0.33201959,109250.0,109240.0,0.13823958]
[1752083704344,0.33201959,109250.0,109240.0,0.33047676]
[1752083704701,0.33183268,109250.0,109240.0,0.33047676]
[1752083705097,0.34098566,109250.0,109240.0,0.33963066]
[1752083705361,0.34098566,109250.0,109240.0,0.34878431]
[1752083705911,0.34098566,109250.0,109240.0,0.35793787]
[1752083706133,0.35013897,109250.0,109240.0,0.35793787]
[1752083706334,0.35013897,109250.0,109240.0,0.34878431]
[1752083706757,0.21033897,109250.0,109240.0,0.34878431]
[1752083706958,0.35005897,109250.0,109240.0,0.34878431]
[1752083707170,0.21033897,109250.0,109240.0,0.34878431]
[1752083707370,0.35005897,109250.0,109240.0,0.34878431]
[1752083708624,0.35005897,109250.0,109240.0,0.33963066]
[1752083708756,0.21033897,109250.0,109240.0,0.35793813]
[1752083708955,0.35005897,109250.0,109240.0,0.35793813]
[1752083709851,0.01830571,109250.0,109240.0,0.4347942]
[1752083710068,0.87814022,109260.0,109250.0,0.24533538]
[1752083710069,0.55050585,109260.0,109250.0,0.24533538]
[1752083710226,0.55965824,109260.0,109250.0,0.60652353]
[1752083710433,0.51632864,109260.0,109250.0,0.25448811]
[1752083710632,0.16717591,109260.0,109250.0,0.25448811]
[1752083710831,0.35937782,109260.0,109250.0,0.24533538]
[1752083711667,0.17632822,109260.0,109250.0,0.25448811]
[1752083711866,0.01830369,109260.0,109250.0,0.60652353]
[1752083712065,0.16717583,109260.0,109250.0,0.69796046]
[1752083712266,0.17632814,109260.0,109250.0,0.69796046]
[1752083712608,0.35022602,109260.0,109250.0,0.31846652]
[1752083712732,0.21050602,109260.0,109250.0,0.31846652]
[1752083712942,0.55470947,109260.0,109250.0,0.00421]
[1752083713143,0.56970947,109260.0,109250.0,0.00421]
[1752083713549,0.18306636,109250.0,109240.0,0.37508702]
[1752083713755,0.18306636,109250.0,109240.0,0.4750504]
[1752083714160,0.55310502,109260.0,109240.0,0.48420405]
[1752083714431,0.18306636,109250.0,109240.0,0.48420405]
[1752083714591,0.18306636,109250.0,109240.0,0.48620405]
[1752083714757,0.55310502,109260.0,109240.0,0.48620405]
[1752083714967,0.00915306,109250.0,109240.0,0.49535761]
[1752083715803,0.19221942,109250.0,109240.0,0.49635761]
[1752083715978,0.20137265,109250.0,109240.0,0.49635761]
[1752083716184,0.01830621,109250.0,109240.0,0.49635761]
[1752083716831,0.00915281,109250.0,109240.0,0.84839253]
[1752083717038,0.00915256,109250.0,109240.0,0.8427388]
[1752083717411,0.35022636,109260.0,109250.0,0.24383554]
[1752083717615,0.01830437,109260.0,109250.0,0.24383554]
[1752083717876,0.16717618,109260.0,109250.0,0.60502369]
[1752083718077,0.53655395,109270.0,109260.0,0.19220191]
[1752083718280,0.6853855,109270.0,109260.0,0.2003596]
[1752083718482,0.67623395,109270.0,109260.0,0.01731]
[1752083718610,0.67623395,109270.0,109260.0,0.00211]
[1752083719067,0.19220208,109260.0,109250.0,0.58631732]
[1752083719279,0.19220208,109260.0,109250.0,0.2342819]
[1752083719710,0.00915248,109260.0,109250.0,0.2342819]
[1752083720019,0.0183047,109260.0,109250.0,0.2342819]
[1752083720221,0.2013543,109260.0,109250.0,0.2342819]
[1752083720995,0.21050644,109260.0,109250.0,0.2342819]
[1752083721198,0.21050644,109260.0,109250.0,0.30198441]
[1752083721388,0.02745684,109260.0,109250.0,0.2342819]
[1752083722024,0.0366089,109260.0,109250.0,0.2342819]
[1752083722225,0.2196585,109260.0,109250.0,0.2342819]
[1752083722626,0.2196585,109260.0,109250.0,0.23428223]
[1752083722855,0.21352644,109260.0,109250.0,0.20037636]
[1752083723065,0.2056943,109260.0,109250.0,0.20952967]
[1752083723212,0.2056943,109260.0,109250.0,0.22783588]
[1752083723843,0.19654208,109260.0,109250.0,0.00211]
[1752083724131,0.19654208,109260.0,109250.0,0.18517636]
[1752083724308,0.19654208,109260.0,109250.0,0.19432959]
[1752083724618,0.19654208,109260.0,109250.0,0.14179]
[1752083724748,0.1873896,109260.0,109250.0,0.32485636]
[1752083725156,0.1873896,109260.0,109250.0,0.34316273]
[1752083726237,0.19654191,109260.0,109250.0,0.3770686]
[1752083726411,0.19220191,109260.0,109250.0,0.3770686]
[1752083726620,0.19220191,109260.0,109250.0,0.3929686]
[1752083727277,0.19220191,109260.0,109250.0,0.38381571]
[1752083727430,0.19220191,109260.0,109250.0,0.37466273]
[1752083727738,0.19220191,109260.0,109250.0,0.34960967]
[1752083727959,0.19653191,109260.0,109250.0,0.33400967]
[1752083728157,0.19653191,109260.0,109250.0,0.33189967]
[1752083728495,0.19653191,109260.0,109250.0,0.3410529]
[1752083728697,0.19653191,109260.0,109250.0,0.33189967]
[1752083729235,0.33621191,109260.0,109250.0,0.33189967]
[1752083729470,0.33621191,109260.0,109250.0,0.34105282]
[1752083729692,0.33621191,109260.0,109250.0,0.35231588]
[1752083729898,0.33621191,109260.0,109250.0,0.36146886]
[1752083730117,0.33621191,109260.0,109250.0,0.37706886]
[1752083730439,0.33621191,109260.0,109250.0,0.36791588]
[1752083730958,0.33621191,109260.0,109250.0,0.35231588]
[1752083731476,0.33621191,109260.0,109250.0,0.37706886]
[1752083731721,0.33188191,109260.0,109250.0,0.38622175]
[1752083731934,0.33621191,109260.0,109250.0,0.37706886]
[1752083732151,0.33621191,109260.0,109250.0,0.34105282]
[1752083734116,0.3270596,109260.0,109250.0,0.3410529]
[1752083734997,0.3270596,109260.0,109250.0,0.35020605]
[1752083735123,0.3270596,109260.0,109250.0,0.35935911]
[1752083735328,0.3270596,109260.0,109250.0,0.36146911]
[1752083737179,0.00915206,109260.0,109250.0,0.59907734]
[1752083737377,0.16713601,109260.0,109250.0,0.75455676]
[1752083737587,0.17628832,109260.0,109250.0,0.75455676]
[1752083737815,0.02745601,109260.0,109250.0,0.75455676]
[1752083738022,0.03660823,109260.0,109250.0,0.75665676]
[1752083738252,0.04576054,109260.0,109250.0,0.75665676]
[1752083738426,0.04576054,109260.0,109250.0,0.75455676]
[1752083738759,0.22881081,109260.0,109250.0,0.74540403]
[1752083738963,0.22881081,109260.0,109250.0,0.74540411]
[1752083739168,0.22881081,109260.0,109250.0,0.75455692]
[1752083739667,0.22881081,109260.0,109250.0,0.4025215]
[1752083742147,0.21965875,109260.0,109250.0,0.75455692]
[1752083743225,0.21483661,109260.0,109250.0,0.35010951]
[1752083743626,0.21483661,109260.0,109250.0,0.33400951]
[1752083744444,0.21483661,109260.0,109250.0,0.34316257]
[1752083745470,0.21483661,109260.0,109250.0,0.35231546]
[1752083745852,0.21483661,109260.0,109250.0,0.36146827]
[1752083746064,0.21483661,109260.0,109250.0,0.37756827]
[1752083746666,0.21483661,109260.0,109250.0,0.73875642]
[1752083746883,0.21050661,109260.0,109250.0,0.73875642]
[1752083747212,0.21050661,109260.0,109250.0,0.37756827]
[1752083747420,0.21050661,109260.0,109250.0,0.72045088]
[1752083748238,0.21482661,109260.0,109250.0,0.35926257]
[1752083748442,0.21482661,109260.0,109250.0,0.34316257]
[1752083749845,0.18306636,109250.0,109240.0,0.6683773]
[1752083750045,0.21282208,109260.0,109250.0,0.18306636]
[1752083750046,0.21284208,109260.0,109250.0,0.18306636]
[1752083750707,0.22894208,109260.0,109250.0,0.19221967]
[1752083751513,0.22585208,109260.0,109250.0,0.2013729]
[1752083751866,0.21282208,109260.0,109250.0,0.2013729]
[1752083752001,0.21282208,109260.0,109250.0,0.21052605]
[1752083752347,0.21282208,109260.0,109250.0,0.2013729]
[1752083753047,0.2036696,109260.0,109240.0,0.82636418]
[1752083753277,0.00915315,109250.0,109240.0,0.92842756]
[1752083754195,0.2036896,109260.0,109250.0,0.19221959]
[1752083754432,0.2036896,109260.0,109250.0,0.34105274]
[1752083754556,0.2036896,109260.0,109250.0,0.33189959]
[1752083754757,0.2036896,109260.0,109250.0,0.19221959]
[1752083757029,0.2036896,109260.0,109250.0,0.20137274]
[1752083757909,0.2036896,109260.0,109250.0,0.19221959]
[1752083758096,0.2036896,109260.0,109250.0,0.20137274]
[1752083758698,0.2036896,109260.0,109250.0,0.19221959]
[1752083759867,0.2036896,109260.0,109250.0,0.20137274]
[1752083760966,0.18306636,109250.0,109240.0,0.82846451]
[1752083761161,0.2024196,109260.0,109240.0,0.92842789]
[1752083761364,0.19344959,109250.0,109240.0,0.43444667]
[1752083761596,0.19653959,109250.0,109240.0,0.4415004]
[1752083762561,0.19653959,109250.0,109240.0,0.4435004]
[1752083762766,0.19653959,109250.0,109240.0,0.45265405]
[1752083764030,0.03177918,109250.0,109240.0,0.46390761]
[1752083764231,0.03177918,109250.0,109240.0,0.81594303]
[1752083764466,0.02139595,109250.0,109240.0,0.81594303]
[1752083764623,0.0305491,109250.0,109240.0,0.83184303]
[1752083765042,0.0274591,109250.0,109240.0,0.83184303]
[1752083765243,0.0274591,109250.0,109240.0,0.83284303]
[1752083765881,0.01830595,109250.0,109240.0,0.83284303]
[1752083766060,0.0274591,109250.0,109240.0,0.84225744]
[1752083766581,0.21967869,109250.0,109240.0,0.84225744]
[1752083767062,0.233152,109250.0,109240.0,0.46490761]
[1752083767294,0.04093233,109250.0,109240.0,0.46490761]
[1752083767506,0.0317791,109250.0,109240.0,0.88464554]
[1752083767713,0.0317791,109250.0,109240.0,0.81694303]
[1752083767921,0.0305491,109250.0,109240.0,0.81694303]
[1752083768354,0.02139595,109250.0,109240.0,0.81694303]
[1752083768587,0.02745835,109250.0,109240.0,0.84764303]
[1752083768790,0.02745835,109250.0,109240.0,0.8569234]
[1752083769013,0.0366115,109250.0,109240.0,0.8569234]
[1752083769484,0.0366115,109250.0,109240.0,0.50488798]
[1752083769696,0.0366115,109250.0,109240.0,0.8418234]
[1752083769904,0.03661141,109250.0,109240.0,0.8418234]
[1752083771873,0.01830537,109250.0,109240.0,0.8418234]
[1752083772104,0.01830537,109250.0,109240.0,0.8581234]
[1752083772594,0.21344594,109260.0,109250.0,0.22164827]
[1752083772808,0.03954873,109260.0,109250.0,0.57368369]
[1752083773023,0.04094873,109260.0,109250.0,0.57368369]
[1752083773238,0.22399833,109260.0,109250.0,0.57368369]
[1752083773448,0.22399833,109260.0,109250.0,0.56453096]
[1752083773652,0.22399833,109260.0,109250.0,0.20137257]
[1752083773653,0.24029892,109260.0,109250.0,0.20137257]
[1752083775256,0.24029892,109260.0,109250.0,0.21052555]
[1752083775707,0.23114678,109260.0,109250.0,0.21052555]
[1752083776285,0.22199447,109260.0,109250.0,0.19221951]
[1752083776857,0.22199447,109260.0,109250.0,0.19221959]
[1752083777689,0.22199447,109260.0,109250.0,0.20137274]
[1752083778280,0.2036896,109260.0,109250.0,0.18306636]
[1752083778556,0.2188896,109260.0,109250.0,0.19221967]
[1752083779056,0.2188896,109260.0,109250.0,0.2013729]
[1752083779210,0.2036896,109260.0,109250.0,0.21052596]
[1752083779601,0.2036896,109260.0,109250.0,0.21967894]
[1752083781082,0.2036896,109260.0,109250.0,0.21052596]
[1752083781463,0.1873896,109260.0,109250.0,0.21052596]
[1752083781815,0.2039896,109260.0,109250.0,0.21052596]
[1752083782997,0.2039896,109260.0,109250.0,0.21967894]
[1752083783631,0.2039896,109260.0,109250.0,0.21052596]
[1752083785020,0.2039896,109260.0,109250.0,0.2013729]
[1752083786505,0.2039896,109260.0,109250.0,0.21052605]
[1752083787115,0.2039896,109260.0,109250.0,0.21967911]
[1752083787489,0.2039896,109260.0,109250.0,0.22883209]
[1752083789155,0.02264453,109260.0,109250.0,0.23080209]
[1752083789324,0.20569413,109260.0,109250.0,0.23080151]
[1752083789499,0.20569413,109260.0,109250.0,0.58283693]
[1752083789715,0.14883189,109260.0,109250.0,0.61553693]
[1752083789931,0.15798395,109260.0,109250.0,0.61553693]
[1752083790118,0.55065395,109270.0,109260.0,0.20135397]
[1752083790119,0.70088534,109270.0,109260.0,0.20135397]
[1752083790325,0.02745341,109270.0,109260.0,0.87657128]
[1752083790527,0.00915097,109270.0,109260.0,0.87657128]
[1752083790734,0.70364261,109280.0,109270.0,0.19415432]
[1752083790950,0.69449223,109280.0,109270.0,0.1941544]
[1752083791135,0.70979223,109280.0,109270.0,0.20133587]
[1752083791955,0.71279223,109280.0,109270.0,0.20133587]
[1752083792991,0.71279223,109280.0,109270.0,0.21048726]
[1752083793243,0.71679223,109280.0,109270.0,0.21048726]
[1752083793421,0.7076416,109280.0,109270.0,0.21048726]
[1752083793879,0.7076416,109280.0,109270.0,0.27818977]
[1752083794139,0.68934008,109280.0,109270.0,0.1921844]
[1752083796353,0.68934008,109280.0,109270.0,0.18303285]
[1752083798069,0.19653432,109270.0,109260.0,0.4809796]
[1752083798278,0.01830369,109260.0,109250.0,0.24389538]
[1752083798485,0.01830369,109260.0,109250.0,0.48416504]
[1752083799115,0.01830361,109260.0,109250.0,0.48416504]
[1752083799495,0.00915172,109260.0,109250.0,0.48416504]
[1752083799917,0.01830361,109260.0,109250.0,0.48416504]
[1752083800586,0.00915172,109260.0,109250.0,0.48416504]
[1752083801526,0.00915172,109260.0,109250.0,0.83620046]
[1752083801717,0.01830361,109260.0,109250.0,0.83620046]
[1752083801919,0.00915172,109260.0,109250.0,0.83620046]
[1752083802572,0.01830361,109260.0,109250.0,0.83620046]
[1752083804409,0.00915172,109260.0,109250.0,0.83620046]
[1752083805713,0.16110219,109270.0,109260.0,0.21257602]
[1752083805957,0.17025358,109270.0,109260.0,0.58001144]
[1752083806166,0.16110219,109270.0,109260.0,0.58001144]
[1752083806525,0.17025358,109270.0,109260.0,0.22797602]
[1752083806720,0.1428,109270.0,109260.0,0.22797602]
[1752083806925,0.16310202,109270.0,109260.0,0.22797602]
[1752083807337,0.16510202,109270.0,109260.0,0.58001144]
[1752083808430,0.03461332,109270.0,109260.0,0.58001144]
[1752083808643,0.03461324,109270.0,109260.0,0.58001144]
[1752083809826,0.04376463,109270.0,109260.0,0.58001144]
[1752083810015,0.23713903,109270.0,109260.0,0.2125761]
[1752083810419,0.23513743,109270.0,109250.0,0.82507664]
[1752083810584,0.23513743,109270.0,109260.0,0.19220199]
[1752083810784,0.23513743,109270.0,109260.0,0.1830496]
[1752083811081,0.21683449,109270.0,109260.0,0.19220208]
[1752083811287,0.02265445,109260.0,109250.0,0.294879]
[1752083811488,0.03885445,109260.0,109250.0,0.434519]
[1752083811888,0.04800684,109260.0,109250.0,0.434519]
[1752083812172,0.0226542,109260.0,109250.0,0.434519]
[1752083812359,0.03180651,109260.0,109250.0,0.434519]
[1752083814194,0.03180617,109260.0,109250.0,0.434519]
[1752083814466,0.23316047,109260.0,109250.0,0.4345195]
[1752083814678,0.23316047,109260.0,109250.0,0.44367239]
[1752083815359,0.02146553,109250.0,109240.0,0.20405375]
[1752083815570,0.21487504,109250.0,109240.0,0.45281095]
[1752083815781,0.22402835,109250.0,109240.0,0.4619646]
[1752083816538,0.21967835,109250.0,109240.0,0.4649646]
[1752083816744,0.22400835,109250.0,109240.0,0.3253246]
[1752083817161,0.22400835,109250.0,109240.0,0.47411833]
[1752083817162,0.23316091,109250.0,109240.0,0.47411833]
[1752083817563,0.23316091,109250.0,109240.0,0.34363189]
[1752083817743,0.23316091,109250.0,109240.0,0.48327189]
[1752083819220,0.05009455,109250.0,109240.0,0.48327189]
[1752083819895,0.03178809,109250.0,109240.0,0.34363189]
[1752083820119,0.0183052,109250.0,109240.0,0.85180731]
[1752083820327,0.02745801,109250.0,109240.0,0.86810731]
[1752083820729,0.24655645,109260.0,109250.0,0.20137257]
[1752083820929,0.18724676,109260.0,109250.0,0.21052538]
[1752083821088,0.37944884,109260.0,109250.0,0.21052538]
[1752083821292,0.18724618,109260.0,109250.0,0.21967811]
[1752083821480,0.37944817,109260.0,109250.0,0.21967811]
[1752083821886,0.38860065,109260.0,109250.0,0.21967811]
[1752083822557,0.38860065,109260.0,109250.0,0.21052538]
[1752083823174,0.37944884,109260.0,109250.0,0.21052538]
[1752083823314,0.37944884,109260.0,109250.0,0.20137257]
[1752083823509,0.37029678,109260.0,109250.0,0.20137257]
[1752083823738,0.37029678,109260.0,109250.0,0.21052546]
[1752083824137,0.23065678,109260.0,109250.0,0.21052546]
[1752083825157,0.23065678,109260.0,109250.0,0.21967827]
[1752083825967,0.23065678,109260.0,109250.0,0.228831]
[1752083826139,0.23065678,109260.0,109250.0,0.21967827]
[1752083826538,0.23065678,109260.0,109250.0,0.21052546]
[1752083827447,0.23065678,109260.0,109250.0,0.21967827]
[1752083828781,0.23065678,109260.0,109250.0,0.21052546]
[1752083829876,0.23065678,109260.0,109250.0,0.228831]
[1752083831301,0.23065678,109260.0,109250.0,0.21052546]
[1752083831470,0.22150447,109260.0,109250.0,0.20137257]
[1752083832242,0.22150447,109260.0,109250.0,0.21967827]
[1752083833234,0.22150447,109260.0,109250.0,0.228831]
[1752083833445,0.19652449,109270.0,109260.0,0.20336413]
[1752083833680,0.01830236,109270.0,109260.0,0.71959144]
[1752083833890,0.02745324,109270.0,109260.0,0.71959144]
[1752083834090,0.03660454,109270.0,109260.0,0.71959144]
[1752083834329,0.01830202,109270.0,109260.0,0.71959144]
[1752083834462,0.56135825,109280.0,109270.0,0.21048702]
[1752083834668,0.70099825,109280.0,109270.0,0.21048718]
[1752083834866,0.70099825,109280.0,109270.0,0.56255958]
[1752083835074,0.70099825,109280.0,109270.0,0.21048718]
[1752083835703,0.70499825,109280.0,109270.0,0.21048718]
[1752083836514,0.70192825,109280.0,109270.0,0.21048718]
[1752083836717,0.70498825,109280.0,109270.0,0.21048718]
[1752083838388,0.70798825,109280.0,109270.0,0.21048718]
[1752083838702,0.70798825,109280.0,109270.0,0.21985493]
[1752083839132,0.70798825,109280.0,109270.0,0.21048718]
[1752083840171,0.69883762,109280.0,109270.0,0.21048718]
[1752083841043,0.6896869,109280.0,109270.0,0.20133588]
[1752083842953,0.6866869,109280.0,109270.0,0.21048718]
[1752083843155,0.6866869,109280.0,109270.0,0.21974701]
[1752083843359,0.02863035,109280.0,109270.0,0.58298035]
[1752083843561,0.18657136,109280.0,109270.0,0.58298035]
[1752083843734,0.18224128,109280.0,109270.0,0.61468035]
[1752083843963,0.17824128,109280.0,109270.0,0.61468035]
[1752083844161,0.18739191,109280.0,109270.0,0.61468035]
[1752083844330,0.16909073,109280.0,109270.0,0.61468035]
[1752083844729,0.17109073,109280.0,109270.0,0.61468035]
[1752083844968,0.1802412,109280.0,109270.0,0.61468035]
[1752083845549,0.17109073,109280.0,109270.0,0.61468035]
[1752083845756,0.16194035,109280.0,109270.0,0.61468035]
[1752083846289,0.16190035,109280.0,109270.0,0.61468035]
[1752083846541,0.16190026,109280.0,109270.0,0.61468035]
[1752083846951,0.17105056,109280.0,109270.0,0.61468035]
[1752083847150,0.15275005,109280.0,109270.0,0.61468035]
[1752083847350,0.16190035,109280.0,109270.0,0.61468035]
[1752083848329,0.02230035,109280.0,109270.0,0.61468035]
[1752083848530,0.004,109280.0,109270.0,0.61498035]
[1752083848811,0.004,109280.0,109270.0,0.70851728]
[1752083849028,0.004,109280.0,109270.0,0.35644499]
[1752083849170,0.004,109280.0,109270.0,0.70851728]
[1752083849823,0.01315013,109280.0,109270.0,0.70851728]
[1752083850689,0.01315005,109280.0,109270.0,0.70851728]
[1752083851290,0.02230026,109280.0,109270.0,0.70641728]
[1752083851521,0.01315005,109280.0,109270.0,0.70641728]
[1752083852261,0.02230035,109280.0,109270.0,0.70641728]
[1752083853391,0.01315005,109280.0,109270.0,0.70641728]
[1752083853588,0.02230026,109280.0,109270.0,0.70641728]
[1752083853792,0.01315005,109280.0,109270.0,0.70641728]
[1752083854136,0.01315005,109280.0,109270.0,0.70851728]
[1752083855186,0.004,109280.0,109270.0,0.70641728]
[1752083855788,0.01315013,109280.0,109270.0,0.70641728]
[1752083857188,0.02230043,109280.0,109270.0,0.70641728]
[1752083858385,0.004,109280.0,109270.0,0.70641728]
[1752083858573,0.01315013,109280.0,109270.0,0.70641728]
[1752083858767,0.02230043,109280.0,109270.0,0.70633553]
[1752083858974,0.004,109280.0,109270.0,0.70633553]
[1752083859170,0.004,109280.0,109270.0,0.70843553]
[1752083859417,0.01315005,109280.0,109270.0,0.70843553]
[1752083859623,0.01315005,109280.0,109270.0,0.70633553]
[1752083859815,0.004,109280.0,109270.0,0.70633553]
[1752083859995,0.004,109280.0,109270.0,0.77403804]
[1752083860230,0.004,109280.0,109270.0,0.70633553]
[1752083860606,0.01315005,109280.0,109270.0,0.70633553]
[1752083861750,0.02230026,109280.0,109270.0,0.70633553]
[1752083862149,0.02230026,109280.0,109270.0,0.98549553]
[1752083862332,0.02230018,109280.0,109270.0,0.98549553]
[1752083862532,0.004,109280.0,109270.0,0.98549553]
[1752083864487,0.004,109280.0,109270.0,1.00265557]
[1752083865862,0.01315013,109280.0,109270.0,1.00265557]
[1752083866068,0.004,109280.0,109270.0,1.00265557]
[1752083866292,0.01315013,109280.0,109270.0,1.00265557]
[1752083866508,0.004,109280.0,109270.0,1.00265557]
[1752083867135,0.004,109280.0,109270.0,1.00265642]
[1752083868683,0.004,109280.0,109270.0,1.00475642]
[1752083869640,0.004,109280.0,109270.0,1.00265642]
[1752083870067,0.01315005,109280.0,109270.0,1.00265642]
[1752083870308,0.01315005,109280.0,109270.0,1.0703611]
[1752083870485,0.004,109280.0,109270.0,1.00265859]
[1752083871630,0.004,109280.0,109270.0,1.10262197]
[1752083871828,0.01315013,109280.0,109270.0,1.10262197]
[1752083872065,0.01315005,109280.0,109270.0,1.10262197]
[1752083872308,0.01115005,109280.0,109270.0,1.10262197]
[1752083872543,0.01315005,109280.0,109270.0,1.10262197]
[1752083872782,0.01115005,109280.0,109270.0,1.10262197]
[1752083872985,0.01115005,109280.0,109270.0,1.10462197]
[1752083873656,0.02030026,109280.0,109270.0,1.10462197]
[1752083873878,0.02030018,109280.0,109270.0,1.10462197]
[1752083874106,0.02030018,109280.0,109270.0,1.08892197]
[1752083874301,0.01830018,109280.0,109270.0,1.08892197]
[1752083874585,0.02945048,109280.0,109270.0,1.15662448]
[1752083874811,0.02945048,109280.0,109270.0,1.08892197]
[1752083875248,0.02745048,109280.0,109270.0,1.08892197]
[1752083875505,0.02745048,109280.0,109270.0,1.08992197]
[1752083876469,0.02745048,109280.0,109270.0,1.0899306]
[1752083878168,0.01830018,109280.0,109270.0,1.0899306]
[1752083879053,0.02745039,109280.0,109270.0,1.0899306]
[1752083879216,0.34648929,109290.0,109280.0,0.20131711]
[1752083879413,0.15433959,109290.0,109280.0,0.85870964]
[1752083879740,0.15433959,109290.0,109280.0,0.86785985]
[1752083880479,0.1544249,109290.0,109280.0,0.86785985]
[1752083880842,0.16357369,109290.0,109280.0,0.86785985]
[1752083881230,0.14527452,109290.0,109280.0,0.86785985]
[1752083881428,0.11972531,109290.0,109280.0,0.86785985]
[1752083881638,0.10008531,109290.0,109280.0,1.31338732]
[1752083881841,0.10008531,109290.0,109280.0,1.34558732]
[1752083882034,0.10008531,109290.0,109280.0,1.34768732]
[1752083882522,0.10008531,109290.0,109280.0,1.69967786]
[1752083882724,0.10008531,109290.0,109280.0,1.94964124]
[1752083882976,0.10008531,109290.0,109280.0,2.05913957]
[1752083883197,0.10008531,109290.0,109280.0,1.70714903]
[1752083883717,0.10008531,109290.0,109280.0,1.5976507]
[1752083884679,0.10008531,109290.0,109280.0,1.59860075]
[1752083884896,0.10008531,109290.0,109280.0,1.24645185]
[1752083885217,0.10008531,109290.0,109280.0,1.24545185]
[1752083885473,0.10008531,109290.0,109280.0,1.24845185]
[1752083886325,0.10008531,109290.0,109280.0,1.23133011]
[1752083886953,0.10008531,109290.0,109280.0,1.23333011]
[1752083887386,0.10008531,109290.0,109280.0,1.23133011]
[1752083887593,0.10108531,109290.0,109280.0,1.23733011]
[1752083888889,0.10108531,109290.0,109280.0,1.25187096]
[1752083889100,0.10108531,109290.0,109280.0,1.3339385]
[1752083900439,0.12130531,109290.0,109280.0,0.93104547]
[1752083900663,0.12130531,109290.0,109280.0,1.28287765]
[1752083900886,0.1304546,109290.0,109280.0,1.28494765]
[1752083901111,0.1304546,109290.0,109280.0,1.20288011]
[1752083901553,0.1261346,109290.0,109280.0,1.28494765]
[1752083901781,0.1304746,109290.0,109280.0,1.28494765]
[1752083902536,0.13962398,109290.0,109280.0,1.14546765]
[1752083903403,0.1304746,109290.0,109280.0,1.14546765]
[1752083903829,0.12132531,109290.0,109280.0,1.14546765]
[1752083904052,0.10542531,109290.0,109280.0,1.14546765]
[1752083907032,0.11457452,109290.0,109280.0,1.14555185]
[1752083907235,0.10108531,109290.0,109280.0,1.14555185]
[1752083907667,0.10108531,109290.0,109280.0,1.49746823]
[1752083908174,0.11023452,109290.0,109280.0,1.49746823]
[1752083908380,0.10411531,109290.0,109280.0,1.14555185]
[1752083909376,0.10411531,109290.0,109280.0,1.06348431]
[1752083909916,0.10411531,109290.0,109280.0,0.71156793]
[1752083910145,0.10411531,109290.0,109280.0,1.06348431]
[1752083911398,0.10542531,109290.0,109280.0,1.17298264]
[1752083914611,0.10542531,109290.0,109280.0,1.17294264]
[1752083919456,0.10108531,109290.0,109280.0,1.52485902]
[1752083919678,0.10108531,109290.0,109280.0,1.55535902]
[1752083924843,0.10108531,109290.0,109280.0,1.54015902]
[1752083931882,0.10108531,109290.0,109280.0,0.83632626]
[1752083932082,0.10108531,109290.0,109280.0,1.54015902]
[1752083936765,0.10108531,109290.0,109280.0,1.17294264]
[1752083938503,0.10103609,109290.0,109280.0,1.17294264]
[1752083940116,0.10103609,109290.0,109280.0,1.06344431]
[1752083940331,0.10103609,109290.0,109280.0,0.71152793]
[1752083940529,0.10103609,109290.0,109280.0,1.06344431]
[1752083940760,0.10427609,109290.0,109280.0,1.06344431]
[1752083941255,0.10538609,109290.0,109280.0,1.06344431]
[1752083943158,0.12088609,109290.0,109280.0,1.06344431]
[1752083945379,0.12088609,109290.0,109280.0,0.57208793]
[1752083945648,0.12088609,109290.0,109280.0,1.06336431]
[1752083945987,0.48930247,109290.0,109280.0,0.70937793]
[1752083947131,0.13738609,109290.0,109280.0,0.57001793]
[1752083947321,0.13738609,109290.0,109280.0,0.70937793]
[1752083948456,0.13738609,109290.0,109280.0,0.57001793]
[1752083948656,0.13738609,109290.0,109280.0,0.70937793]
[1752083949208,0.13738609,109290.0,109280.0,0.77708044]
[1752083949411,0.13738609,109290.0,109280.0,0.70937793]
[1752083950087,0.13738609,109290.0,109280.0,0.92193431]
[1752083950339,0.13738609,109290.0,109280.0,1.06129431]
[1752083951767,0.13736609,109290.0,109280.0,1.06329431]
[1752083952184,0.13736609,109290.0,109280.0,0.71137793]
[1752083952448,0.13736609,109290.0,109280.0,1.06129431]
[1752083953160,0.12086609,109290.0,109280.0,1.06129431]
[1752083955454,0.12086609,109290.0,109280.0,0.70937793]
[1752083955661,0.12086609,109290.0,109280.0,1.06129431]
[1752083961084,0.12086609,109290.0,109280.0,1.06342431]
[1752083968388,0.12086609,109290.0,109280.0,1.06129431]
[1752083968713,0.13676609,109290.0,109280.0,1.06129431]
[1752083969052,0.12086609,109290.0,109280.0,0.70937793]
[1752083969275,0.12086609,109290.0,109280.0,1.06129431]
[1752083969728,0.14831472,109290.0,109280.0,0.55171742]
[1752083969924,1.032748,109290.0,109280.0,0.10896338]
[1752083970468,1.032748,109290.0,109280.0,0.10596338]
[1752083970677,1.032748,109290.0,109280.0,0.008]
[1752083971481,0.22557682,109280.0,109270.0,0.21987805]
[1752083971651,0.7281435,109280.0,109270.0,0.37497737]
[1752083971853,0.7281435,109280.0,109270.0,0.36582607]
[1752083972064,0.7189932,109280.0,109270.0,0.36582607]
[1752083972413,1.07090958,109280.0,109270.0,0.35667468]
[1752083973299,1.07090958,109280.0,109270.0,0.35967468]
[1752083973672,1.07090958,109280.0,109270.0,0.36982607]
[1752083976626,0.93162958,109280.0,109270.0,0.36982607]
[1752083976880,1.07090958,109280.0,109270.0,0.37897729]
[1752083977972,1.07090958,109280.0,109270.0,0.36982607]
[1752083978378,0.88789348,109280.0,109270.0,0.1867946]
[1752083978586,0.88789348,109280.0,109270.0,0.1959459]
[1752083978792,0.55427837,109280.0,109270.0,0.20509712]
[1752083979356,0.55427837,109280.0,109270.0,0.21424826]
[1752083980185,0.41499837,109280.0,109270.0,0.21424826]
[1752083980392,0.55427769,109280.0,109270.0,0.35352784]
[1752083980843,0.54512706,109280.0,109270.0,0.35352784]
[1752083981194,0.55427769,109280.0,109270.0,0.35352784]
[1752083981402,0.54512706,109280.0,109270.0,0.35352784]
[1752083981615,0.55427769,109280.0,109270.0,0.35352784]
[1752083981819,0.54512706,109280.0,109270.0,0.35352784]
[1752083981989,0.55427761,109280.0,109270.0,0.35352784]
[1752083982587,0.56342824,109280.0,109270.0,0.35352784]
[1752083982802,0.55427761,109280.0,109270.0,0.35352784]
[1752083982999,0.20236123,109280.0,109270.0,0.35352784]